bitfinex-derivatives/quotes_ETHF0:USTF0_20250817
["timestamp","ask_amount","ask_price","bid_price","bid_amount"]
[1755396876693,1.68928827,4402.7,4402.6,0.1686]
[1755396877492,1.68928827,4402.7,4402.3,20.702]
[1755396877694,0.5865,4402.4,4402.3,21.0351]
[1755396877898,1.68928827,4402.4,4402.3,21.5381]
[1755396878110,1.18598827,4402.4,4402.3,21.5381]
[1755396878297,0.9662,4402.4,4402.3,21.5381]
[1755396878496,0.8018,4402.4,4402.3,21.5381]
[1755396878698,1.02154502,4402.4,4402.3,21.5381]
[1755396879196,0.6313,4402.7,4402.3,21.5381]
[1755396879401,0.64185482,4402.6,4402.5,0.8361]
[1755396879589,0.883,4402.5,4402.3,20.702]
[1755396879794,1.6892536,4402.4,4402.3,21.5381]
[1755396880193,1.4695,4402.4,4402.3,21.5381]
[1755396881299,1.4695,4402.4,4402.3,20.8706]
[1755396881703,1.4695,4402.4,4402.3,21.3736]
[1755396881907,1.4695,4402.4,4402.3,21.5381]
[1755396884215,0.883,4402.9,4402.3,21.0351]
[1755396884410,0.4221,4402.5,4402.4,0.8361]
[1755396884609,0.8018,4402.5,4402.4,0.8361]
[1755396885514,0.9662,4402.5,4402.4,0.8361]
[1755396885716,1.4695,4402.5,4402.4,0.8361]
[1755396890920,1.2172,4402.5,4402.4,0.8361]
[1755396891322,1.4789,4402.5,4402.4,0.8361]
[1755396891919,0.9662,4402.5,4402.4,0.8385]
[1755396892824,0.8018,4402.5,4402.4,0.8385]
[1755396893025,0.2516,4402.5,4402.4,0.8385]
[1755396893325,3.2078,4403.0,4402.4,0.8385]
[1755396893626,0.8148,4402.6,4402.5,0.8719]
[1755396893926,1.5079,4402.6,4402.5,0.8695]
[1755396894226,1.5079,4402.6,4402.5,0.8704]
[1755396897229,1.72509231,4402.6,4402.5,0.8704]
[1755396898926,1.72509231,4402.6,4402.5,0.4345]
[1755396899131,1.5079,4402.1,4402.0,0.8719]
[1755396899430,1.5079,4402.8,4402.7,0.8695]
[1755396899631,1.72512846,4402.8,4402.7,21.5695]
[1755396899933,1.72512846,4402.8,4402.7,21.0458]
[1755396901133,1.72517272,4402.8,4402.7,21.5704]
[1755396901534,1.7252199,4402.8,4402.7,21.5704]
[1755396903134,1.7252199,4402.8,4402.7,21.5695]
[1755396903338,1.72535526,4402.8,4402.7,21.5695]
[1755396904134,1.72535526,4402.8,4402.7,21.5704]
[1755396906232,0.60935526,4402.8,4402.7,21.5719]
[1755396906433,1.72535526,4402.8,4402.7,21.5719]
[1755396907637,1.72535526,4402.8,4402.7,0.8695]
[1755396907930,0.81705526,4402.8,4402.6,20.697]
[1755396908135,0.81705526,4402.7,4401.9,3.2078]
[1755396908333,1.5079,4401.9,4401.8,32.703]
[1755396908528,1.72535526,4401.9,4401.8,53.4]
[1755396908726,1.72535526,4401.9,4401.8,53.9237]
[1755396909139,1.72574651,4401.9,4401.8,53.9246]
[1755396910533,1.72574651,4401.9,4401.8,53.4]
[1755396911440,1.72574651,4401.9,4401.8,53.9237]
[1755396912438,1.72574651,4401.9,4401.8,53.9246]
[1755396915735,0.64074651,4401.9,4401.8,53.9246]
[1755396915940,1.72574651,4401.9,4401.8,53.9246]
[1755396916334,1.72574651,4401.9,4401.8,21.5674]
[1755396916536,1.72574651,4401.9,4401.8,21.5689]
[1755396923246,1.72574651,4401.9,4401.8,21.5665]
[1755396923247,0.21784651,4401.9,4401.8,21.5665]
[1755396923445,0.85734651,4401.9,4401.8,21.5665]
[1755396923646,1.69264651,4401.9,4401.8,21.5665]
[1755396924946,1.69264651,4401.9,4401.8,0.8695]
[1755396925146,1.69264651,4401.9,4401.8,21.0408]
[1755396925947,1.69264651,4401.9,4401.8,21.5647]
[1755396929545,1.4748,4401.9,4401.8,20.8705]
[1755396929745,1.69463066,4401.9,4401.8,21.3944]
[1755396930148,1.69462252,4401.9,4401.8,21.3944]
[1755396930545,1.69462252,4401.9,4401.8,20.8705]
[1755396931449,1.69462252,4401.9,4401.8,21.3944]
[1755396932249,1.69462252,4401.9,4401.8,20.8705]
[1755396932846,1.05522252,4401.9,4401.4,0.5239]
[1755396933042,1.4748,4401.5,4401.4,0.8664]
[1755396933243,1.4748,4401.5,4401.4,21.5584]
[1755396935252,1.4748,4401.5,4401.4,0.3425]
[1755396935552,1.4748,4401.5,4401.3,20.691]
[1755396935553,1.69482784,4401.5,4401.3,20.691]
[1755396935754,1.69482784,4401.4,4401.3,20.691]
[1755396935944,0.4988,4401.3,4401.0,0.258]
[1755396936248,1.4748,4401.1,4401.0,0.1775]
[1755396936442,1.69482784,4401.1,4401.0,0.1775]
[1755396936852,0.5804,4400.7,4400.6,24.2413]
[1755396937051,1.69482784,4400.7,4400.6,24.7652]
[1755396937252,1.4748,4400.7,4400.6,24.7652]
[1755396938551,1.69473834,4400.7,4400.6,24.7652]
[1755396938852,0.21993834,4400.7,4400.6,24.7652]
[1755396939251,0.3956,4401.0,4400.6,24.2413]
[1755396939451,0.61546722,4400.9,4400.8,0.3425]
[1755396939645,1.69466722,4400.9,4400.8,0.8664]
[1755396944559,1.69466722,4400.9,4400.6,20.691]
[1755396944757,1.0792,4400.6,4400.5,0.3425]
[1755396945058,1.69466722,4400.6,4400.5,0.6084]
[1755396945455,1.69466722,4400.6,4400.5,0.3425]
[1755396945655,1.69466722,4400.6,4400.5,0.1775]
[1755396945956,1.4748,4400.3,4400.2,0.8664]
[1755396947861,1.494,4400.3,4400.2,0.8543]
[1755396948068,4.7018,4400.3,4400.2,0.8543]
[1755396948759,4.7018,4400.3,4400.2,0.3425]
[1755396948967,4.92552544,4400.3,4400.2,0.3425]
[1755396949165,4.92552544,4400.3,4400.2,0.8543]
[1755396952167,4.7018,4400.3,4400.2,0.8543]
[1755396956858,3.2078,4400.8,4400.2,0.8543]
[1755396957073,3.2078,4400.8,4400.6,0.3492]
[1755396957263,0.6576,4401.2,4401.0,0.3492]
[1755396957469,0.6576,4401.2,4401.1,0.861]
[1755396957668,1.29726572,4401.2,4401.1,0.861]
[1755396957867,1.72956572,4401.2,4401.1,0.861]
[1755396959471,0.22356572,4401.2,4401.1,0.861]
[1755396959668,0.5675,4401.8,4401.7,0.1762]
[1755396959874,1.72966582,4401.8,4401.7,0.861]
[1755396960171,0.48076582,4401.8,4401.7,0.861]
[1755396960474,4.0288,4402.5,4402.4,0.861]
[1755396960669,3.43149485,4402.5,4402.4,0.861]
[1755396960970,0.5224,4403.0,4402.9,0.3492]
[1755396961163,1.14654454,4403.0,4402.9,0.861]
[1755396961366,0.22364454,4403.0,4402.9,0.861]
[1755396961667,0.4005,4404.0,4403.3,0.5118]
[1755396961871,0.4205,4404.0,4403.9,0.861]
[1755396962069,1.20778623,4405.6,4404.0,0.5118]
[1755396962070,3.2078,4404.9,4404.0,0.5118]
[1755396962266,0.4005,4404.6,4404.1,0.861]
[1755396962571,0.6875,4404.2,4404.1,0.861]
[1755396962777,1.606,4404.2,4404.1,0.861]
[1755396963370,1.606,4404.2,4404.1,0.6029]
[1755396963568,1.606,4404.2,4404.1,0.6073]
[1755396963771,1.606,4404.2,4404.1,0.861]
[1755396966464,1.606,4404.2,4404.1,0.6029]
[1755396966664,1.606,4404.2,4403.6,20.69]
[1755396966665,0.5875,4403.7,4403.6,0.3492]
[1755396966971,1.506,4403.7,4403.6,0.3492]
[1755396967370,1.506,4403.7,4403.6,0.861]
[1755396967572,0.988,4403.7,4403.6,0.861]
[1755396968774,1.506,4403.7,4403.6,0.861]
[1755396977777,0.988,4403.7,4403.6,0.861]
[1755396977973,0.821,4403.7,4403.6,0.861]
[1755396978876,1.5039,4403.7,4403.6,0.861]
[1755396979676,1.5929,4404.2,4404.1,0.8427]
[1755396980171,1.0814,4404.2,4404.1,0.8427]
[1755396980776,1.5929,4404.2,4404.1,0.8427]
[1755396981480,1.0601,4404.1,4404.0,20.672]
[1755396981679,1.4929,4404.1,4404.0,20.672]
[1755396982178,1.4929,4404.1,4404.0,21.5147]
[1755396982383,0.1,4404.2,4404.1,0.5035]
[1755396982684,0.1,4404.2,4404.1,0.8427]
[1755396983484,1.5929,4404.2,4404.1,0.8427]
[1755396983684,1.5929,4404.2,4404.0,20.672]
[1755396983878,0.6936,4404.2,4404.0,20.672]
[1755396984185,1.4929,4404.1,4404.0,20.8433]
[1755396984983,0.5936,4404.1,4403.5,3.2078]
[1755396985184,1.1051,4404.0,4403.9,0.3392]
[1755396985489,1.1051,4404.0,4403.9,0.8427]
[1755396985691,1.4929,4404.0,4403.9,0.8427]
[1755396985985,0.9814,4404.0,4403.9,0.8427]
[1755396986186,1.20418694,4404.0,4403.9,0.8427]
[1755396986586,0.9814,4404.0,4403.9,0.8427]
[1755396986891,1.4929,4404.0,4403.9,0.8427]
[1755396987286,1.715691,4404.0,4403.9,0.8427]
[1755396988297,2.3410862,4404.0,4403.9,0.8427]
[1755396993491,2.3424717,4404.0,4403.9,0.8427]
[1755397002201,1.8309717,4404.0,4403.9,0.8427]
[1755397002900,2.3424717,4404.0,4403.9,0.8427]
[1755397003601,1.8309717,4404.0,4403.9,0.8427]
[1755397004102,2.3424717,4404.0,4403.9,0.8427]
[1755397004504,0.8495717,4404.0,4403.9,3.8427]
[1755397004693,3.4692,4405.0,4404.2,0.45382]
[1755397004894,4.7007,4405.0,4404.9,0.7547]
[1755397005100,4.90567418,4405.0,4404.7,20.666]
[1755397005299,0.5936,4404.8,4404.7,20.666]
[1755397005504,1.69787418,4404.8,4404.7,20.666]
[1755397005700,1.69787418,4404.8,4404.7,21.0806]
[1755397006408,1.69787418,4404.8,4404.7,21.4207]
[1755397007399,0.20497418,4404.8,4404.7,21.4207]
[1755397009309,0.2666,4404.8,4404.7,21.4207]
[1755397009804,1.66926321,4404.8,4404.7,20.666]
[1755397011607,0.1705,4404.5,4404.4,0.2535]
[1755397011910,1.4756,4404.5,4404.4,0.4155]
[1755397012512,1.4756,4404.5,4404.4,0.7586]
[1755397013412,1.2291,4404.5,4404.4,0.7586]
[1755397013614,1.4756,4404.5,4404.4,0.7586]
[1755397015610,3.2078,4405.0,4404.4,0.7586]
[1755397015907,1.2291,4404.5,4404.4,0.3329]
[1755397016116,1.4756,4404.5,4404.4,0.3329]
[1755397016317,1.4756,4404.5,4404.4,0.7586]
[1755397017013,1.4756,4404.5,4404.4,0.5864]
[1755397018513,1.4756,4404.5,4404.4,0.7586]
[1755397018715,1.4756,4404.5,4404.4,0.5864]
[1755397019814,1.4756,4404.5,4404.4,0.7586]
[1755397020011,3.2078,4405.0,4404.4,0.7586]
[1755397020316,0.2579,4404.9,4404.8,0.7586]
[1755397020712,32.698,4406.3,4404.7,20.659]
[1755397020713,4.1703,4405.7,4405.6,0.162]
[1755397021013,4.87680596,4405.7,4405.6,0.7586]
[1755397021617,4.87680596,4405.7,4405.6,0.162]
[1755397022012,3.98980596,4405.7,4405.3,0.4257]
[1755397022315,1.4756,4405.4,4405.3,0.4155]
[1755397023014,1.4756,4405.4,4405.3,0.7586]
[1755397024205,1.4756,4405.4,4405.3,0.5864]
[1755397024813,1.4756,4405.4,4405.2,20.659]
[1755397025017,1.4756,4405.3,4405.2,20.659]
[1755397026215,1.4756,4405.3,4405.2,21.4176]
[1755397027216,0.792,4405.3,4405.2,21.2454]
[1755397027515,1.4756,4405.3,4405.2,21.4176]
[1755397029314,1.4756,4405.3,4405.2,20.659]
[1755397029517,0.5886,4405.0,4404.9,20.655]
[1755397029817,1.4756,4405.0,4404.9,20.655]
[1755397030214,0.8351,4405.0,4404.5,20.655]
[1755397030518,1.2291,4404.9,4404.8,0.7586]
[1755397030721,1.60235122,4407.1,4404.5,20.655]
[1755397030722,4.6834,4405.9,4405.8,0.162]
[1755397031021,4.6834,4405.9,4405.8,0.4155]
[1755397033321,0.5245,4406.2,4405.8,0.3329]
[1755397033517,1.4756,4406.2,4405.7,0.1722]
[1755397033716,0.5886,4405.6,4405.5,20.817]
[1755397033915,1.4756,4405.6,4405.5,21.2414]
[1755397034116,1.4756,4405.6,4405.5,21.4136]
[1755397038822,0.5245,4405.6,4405.5,21.4136]
[1755397039029,0.6366,4406.0,4405.6,0.4289]
[1755397039527,1.476,4406.0,4405.9,0.4331]
[1755397042828,1.476,4406.0,4405.9,0.5986]
[1755397043029,1.2167,4406.0,4405.9,0.7708]
[1755397043228,0.661,4406.0,4405.9,0.7708]
[1755397043429,1.2167,4406.0,4405.9,0.7708]
[1755397043830,0.2425,4406.3,4405.9,0.5986]
[1755397044026,0.2439,4406.2,4406.1,0.3419]
[1755397044331,1.476,4406.2,4406.1,0.7708]
[1755397045930,0.5801,4405.5,4405.4,21.2476]
[1755397046126,1.476,4405.5,4405.4,21.4198]
[1755397046631,1.2167,4405.5,4405.4,21.4198]
[1755397047734,1.0537,4405.5,4405.4,21.4198]
[1755397048932,0.661,4405.5,4405.4,21.4198]
[1755397049431,1.2167,4405.5,4405.4,21.4198]
[1755397050033,1.0537,4405.5,4405.4,21.4198]
[1755397050233,0.4864,4405.5,4405.4,24.6276]
[1755397050736,0.4864,4405.7,4405.5,0.4289]
[1755397050929,0.5018,4406.0,4405.6,0.7708]
[1755397051129,1.0537,4405.9,4405.8,0.7708]
[1755397051329,1.2167,4405.9,4405.8,0.7708]
[1755397051634,1.476,4405.9,4405.8,0.7708]
[1755397058343,1.2167,4406.3,4406.2,0.5986]
[1755397058538,1.476,4406.3,4406.2,21.4168]
[1755397059441,3.2078,4406.4,4406.2,21.4168]
[1755397059638,3.2078,4406.4,4406.2,20.9879]
[1755397059838,0.2425,4406.7,4406.3,0.3419]
[1755397060038,1.0537,4406.6,4406.5,0.7708]
[1755397060240,1.476,4406.6,4406.5,0.7708]
[1755397061543,3.2078,4407.1,4406.2,20.646]
[1755397061544,0.9728,4406.8,4406.7,0.3419]
[1755397061741,1.2321,4406.8,4406.7,21.4168]
[1755397062241,1.476,4406.8,4406.7,21.4168]
[1755397063741,1.476,4406.8,4406.1,3.2078]
[1755397063950,0.5801,4406.5,4406.4,0.4331]
[1755397064243,1.476,4406.5,4406.4,0.7708]
[1755397064547,1.2167,4406.5,4406.4,0.7708]
[1755397064942,1.0537,4406.5,4406.4,0.7708]
[1755397065138,0.2439,4406.7,4406.5,0.2567]
[1755397065345,1.2167,4406.7,4406.6,0.3419]
[1755397065645,1.476,4406.7,4406.6,0.3419]
[1755397065846,1.476,4406.7,4406.6,0.7708]
[1755397067949,1.2167,4406.7,4406.6,0.7708]
[1755397068139,0.2661,4406.9,4406.7,0.4133]
[1755397068340,0.6494,4407.0,4406.9,0.4133]
[1755397068546,1.2483,4407.0,4406.9,0.7511]
[1755397068748,1.4919,4407.0,4406.9,0.7511]
[1755397069045,1.2483,4407.0,4406.9,0.7511]
[1755397069451,1.4919,4407.0,4406.9,0.7511]
[1755397074441,1.4919,4407.0,4406.8,20.642]
[1755397074442,0.893,4406.9,4406.8,20.642]
[1755397074741,1.4919,4406.9,4406.8,21.0602]
[1755397074946,1.4919,4406.9,4406.8,21.2322]
[1755397075348,1.4919,4406.9,4406.8,21.3931]
[1755397076751,3.2078,4407.1,4406.8,21.3931]
[1755397076951,4.0503,4407.1,4407.0,0.3378]
[1755397077150,4.0503,4407.1,4407.0,0.7511]
[1755397077550,4.6997,4407.1,4407.0,0.7511]
[1755397078855,4.6997,4407.1,4407.0,0.5791]
[1755397079057,4.6997,4407.1,4407.0,0.4182]
[1755397079365,0.5989,4406.2,4406.1,3.99922]
[1755397079554,1.2483,4406.2,4406.1,24.63722]
[1755397079756,1.0789,4406.2,4406.1,24.63722]
[1755397079950,0.6956,4406.2,4406.1,25.05052]
[1755397080155,0.5208,4406.2,4406.1,25.05052]
[1755397082559,0.2547,4406.4,4406.3,0.3378]
[1755397082764,0.5208,4406.4,4406.3,0.7511]
[1755397084165,0.1694,4407.1,4407.0,0.1769]
[1755397084367,0.8425,4407.3,4407.2,0.7511]
[1755397084866,1.4919,4407.3,4407.2,0.5791]
[1755397085063,1.4919,4406.9,4406.8,3.2078]
[1755397085259,1.4919,4406.9,4406.8,20.636]
[1755397089667,1.4919,4406.9,4406.8,21.0542]
[1755397090368,1.2258,4406.9,4406.1,3.2078]
[1755397090666,1.4919,4406.2,4406.1,3.7869]
[1755397090870,1.4919,4406.2,4406.1,24.5927]
[1755397098073,0.8908,4407.0,4406.1,24.5927]
[1755397098274,0.8908,4406.8,4406.1,24.5927]
[1755397098470,1.4699,4406.2,4406.1,24.6169]
[1755397098974,1.4699,4406.2,4406.1,3.3847]
[1755397099178,1.4699,4406.2,4406.1,20.633]
[1755397099573,1.4699,4406.2,4406.1,20.7989]
[1755397099878,1.4699,4406.2,4406.1,21.0644]
[1755397105682,1.4699,4406.2,4406.1,21.236]
[1755397106079,1.4699,4406.2,4406.1,21.0644]
[1755397108179,1.60235122,4408.3,4406.1,21.0644]
[1755397108180,3.2078,4407.2,4406.2,0.4371]
[1755397108380,3.6254,4407.2,4407.1,0.3402]
[1755397108582,4.4205,4407.2,4407.1,21.4093]
[1755397108778,3.8915,4407.2,4407.1,21.4093]
[1755397108979,1.0512,4407.2,4407.1,21.4093]
[1755397109183,1.2127,4407.2,4407.1,21.4093]
[1755397109484,1.4699,4407.2,4407.1,21.4093]
[1755397111486,1.4699,4407.2,4407.1,20.7979]
[1755397111781,1.4699,4407.2,4406.9,3.2078]
[1755397111983,1.4699,4407.1,4407.0,20.7959]
[1755397112285,1.4699,4407.1,4407.0,21.4073]
[1755397112881,3.2078,4407.9,4407.0,21.1418]
[1755397113089,4.6777,4407.9,4407.8,0.7773]
[1755397113277,4.6777,4407.9,4407.8,21.4063]
[1755397121892,1.20778623,4409.5,4407.8,20.9692]
[1755397121893,0.6336,4408.2,4407.8,20.9692]
[1755397122102,1.4699,4408.2,4408.1,0.7773]
[1755397122596,3.7869,4408.4,4408.3,0.7773]
[1755397122789,0.5791,4408.4,4408.3,21.4023]
[1755397122991,0.4176,4408.4,4408.3,21.4023]
[1755397123389,0.8893,4408.6,4408.5,0.3402]
[1755397123595,0.8893,4408.6,4408.5,0.7773]
[1755397124093,0.5791,4408.7,4408.6,0.5118]
[1755397124292,1.4699,4408.7,4408.6,0.7773]
[1755397124700,3.2078,4409.4,4408.6,0.7773]
[1755397124901,1.4699,4408.8,4408.7,0.6057]
[1755397125198,1.4699,4408.8,4408.7,0.7773]
[1755397125393,1.4699,4408.8,4408.7,0.4314]
[1755397125591,3.2078,4409.4,4408.1,0.7773]
[1755397125592,0.4176,4408.2,4408.1,0.7773]
[1755397125799,1.0512,4408.2,4408.1,21.4003]
[1755397126298,0.6837,4408.2,4408.1,21.4003]
[1755397127104,0.2557,4408.2,4408.1,21.4003]
[1755397127599,1.5032,4408.5,4408.4,0.7421]
[1755397128193,0.00574812,4408.7,4408.1,20.623]
[1755397128399,0.00574812,4408.7,4408.6,0.7421]
[1755397128698,0.00574812,4408.7,4408.6,21.3631]
[1755397129398,0.00574812,4408.7,4408.6,24.5709]
[1755397130600,0.00574812,4408.7,4408.6,3.2078]
[1755397130802,0.64924812,4408.7,4408.6,24.5739]
[1755397131599,0.25784812,4408.7,4408.6,24.5739]
[1755397133202,0.00574812,4408.7,4408.6,24.5739]
[1755397137699,1.5032,4409.4,4409.3,0.7421]
[1755397138000,1.2452,4409.4,4409.3,24.5679]
[1755397138494,0.7734,4409.7,4409.3,25.02119]
[1755397138697,0.8179,4409.6,4409.5,0.3305]
[1755397138897,0.9931,4409.6,4409.5,0.7421]
[1755397139097,1.2511,4409.6,4409.5,0.7421]
[1755397139303,1.5032,4409.6,4409.5,0.7421]
[1755397140806,1.5032,4409.6,4409.5,0.5709]
[1755397143106,0.5101,4409.5,4409.3,3.2078]
[1755397143409,0.6017,4408.9,4408.8,0.85734]
[1755397143608,0.6017,4408.9,4408.8,21.3581]
[1755397143609,1.5032,4408.9,4408.8,21.3581]
[1755397143906,1.5032,4408.9,4408.8,21.02]
[1755397144509,1.5032,4408.9,4408.8,21.3581]
[1755397145906,0.8538,4408.9,4408.8,21.3581]
[1755397146203,1.5032,4408.9,4408.8,21.3581]
[1755397153211,1.5032,4408.9,4408.8,0.7421]
[1755397153412,1.5032,4408.9,4408.8,21.3561]
[1755397153705,1.5032,4408.9,4408.8,0.7421]
[1755397153900,1.5032,4408.9,4408.8,21.3561]
[1755397157317,0.6017,4408.9,4408.1,3.2078]
[1755397157615,1.4603,4408.2,4408.1,4.43252]
[1755397157809,1.4603,4408.2,4408.1,25.04552]
[1755397158113,1.4603,4408.2,4408.1,24.5921]
[1755397160411,1.4603,4408.2,4408.1,3.9791]
[1755397160713,1.4603,4408.2,4408.1,24.5921]
[1755397161412,1.4603,4408.2,4408.1,3.2078]
[1755397161617,1.4603,4408.2,4408.1,23.8208]
[1755397162214,1.4603,4408.2,4408.1,23.9974]
[1755397162411,1.4603,4408.2,4408.1,24.2562]
[1755397163812,1.4603,4408.2,4408.1,3.2078]
[1755397164012,1.4603,4408.2,4408.1,23.8218]
[1755397164413,1.4603,4408.2,4408.1,24.2572]
[1755397165414,1.4603,4408.2,4408.1,23.8218]
[1755397165713,1.4603,4408.2,4408.1,24.5931]
[1755397166113,1.4603,4408.2,4408.1,24.4218]
[1755397166312,1.4603,4408.2,4408.1,23.9984]
[1755397166913,1.4603,4408.2,4408.1,24.2572]
[1755397169218,1.4603,4408.2,4408.1,24.4218]
[1755397169823,1.4603,4408.2,4408.1,24.5931]
[1755397173126,1.4603,4408.2,4408.1,24.4218]
[1755397173321,1.4603,4408.2,4408.1,24.2572]
[1755397173823,1.4603,4408.2,4407.3,32.85212216]
[1755397174126,1.4603,4407.6,4407.5,3.6432]
[1755397174521,1.4603,4407.6,4407.5,3.8145]
[1755397174723,1.4603,4407.6,4407.5,3.6432]
[1755397174926,1.4603,4407.6,4407.5,3.8145]
[1755397175120,1.4603,4407.6,4407.5,3.9791]
[1755397175520,1.4603,4407.6,4407.5,3.6432]
[1755397175922,1.4603,4407.6,4407.5,3.3844]
[1755397176116,1.4603,4407.6,4407.5,23.8238]
[1755397176322,1.4603,4407.6,4407.5,24.2592]
[1755397177627,1.4603,4407.6,4407.5,24.4305]
[1755397178531,1.4603,4407.6,4407.5,23.8238]
[1755397179531,1.4603,4407.6,4407.5,24.2592]
[1755397179926,1.4603,4407.6,4407.5,3.6432]
[1755397180331,1.4603,4407.6,4407.5,24.2592]
[1755397181531,1.4603,4407.6,4407.5,24.0004]
[1755397181935,1.4603,4407.6,4407.5,3.2078]
[1755397182231,1.4603,4407.6,4407.5,23.8238]
[1755397182532,1.4603,4407.6,4407.5,24.2592]
[1755397182933,1.4603,4407.6,4407.5,24.4238]
[1755397183133,1.4603,4407.6,4407.5,24.5951]
[1755397183634,1.4603,4407.6,4407.5,24.4238]
[1755397183935,1.4603,4407.6,4407.5,24.2592]
[1755397184132,1.4603,4407.6,4407.3,32.671]
[1755397184429,1.4603,4406.6,4406.5,3.2078]
[1755397184637,1.4603,4406.6,4406.5,24.2592]
[1755397184940,0.5677,4406.0,4405.9,32.664]
[1755397185131,1.4603,4406.0,4405.9,53.9388]
[1755397185431,0.6595,4407.0,4406.9,1.2346]
[1755397185628,1.4603,4407.0,4406.9,22.0396]
[1755397185828,0.5677,4407.0,4406.1,3.8496]
[1755397186028,0.5677,4406.2,4406.1,4.4424]
[1755397186228,0.8166,4406.2,4406.1,25.2564]
[1755397186829,1.2133,4406.2,4406.1,4.6144]
[1755397187030,1.4603,4406.2,4406.1,25.2614]
[1755397187226,1.4603,4406.2,4406.1,4.6145]
[1755397187430,0.2573,4406.7,4406.6,0.4092]
[1755397187634,0.4257,4406.7,4406.6,22.0598]
[1755397188036,1.238,4406.7,4406.6,22.0598]
[1755397188236,1.4828,4406.7,4406.6,22.0598]
[1755397188431,1.4828,4406.7,4406.6,0.8335]
[1755397188631,1.4828,4406.7,4406.6,21.4845]
[1755397189343,1.4828,4406.7,4406.6,21.7299]
[1755397191136,1.4828,4406.7,4406.6,22.0658]
[1755397196540,1.4828,4406.7,4406.1,3.3799]
[1755397196841,1.4828,4406.3,4406.2,21.3978]
[1755397197242,1.4828,4406.3,4406.2,22.0558]
[1755397200639,1.4828,4406.3,4406.2,1.4148]
[1755397200840,1.4828,4406.3,4406.2,22.0458]
[1755397201350,1.4828,4406.3,4406.2,1.4148]
[1755397201545,1.4828,4406.3,4406.2,22.0458]
[1755397201746,1.4828,4406.3,4406.2,22.0448]
[1755397202349,1.238,4406.3,4406.2,22.0448]
[1755397202652,1.238,4406.3,4406.2,22.0438]
[1755397202852,1.238,4406.3,4406.2,22.0428]
[1755397203353,1.238,4406.3,4406.2,1.4148]
[1755397203648,1.238,4406.3,4406.2,22.0418]
[1755397204043,1.238,4406.3,4406.2,1.4148]
[1755397204349,1.238,4406.3,4406.2,22.0408]
[1755397204549,0.2573,4406.6,4406.2,0.5847]
[1755397204745,0.8534,4406.6,4406.5,0.5847]
[1755397204950,0.4272,4406.6,4406.5,22.0398]
[1755397205151,0.8534,4406.6,4406.5,22.0398]
[1755397205353,3.2078,4407.1,4406.5,21.8677]
[1755397205551,1.60235122,4409.2,4406.5,21.8677]
[1755397205552,3.2078,4407.6,4407.1,0.6803]
[1755397205749,0.8534,4407.6,4407.5,1.1554]
[1755397205948,0.8534,4407.6,4407.5,22.0458]
[1755397206255,1.4828,4407.6,4407.5,22.0458]
[1755397206555,0.4272,4407.6,4407.5,22.0458]
[1755397206751,0.2588,4407.6,4407.5,22.0458]
[1755397207056,0.5161,4407.6,4407.5,22.0458]
[1755397208353,1.238,4407.6,4407.5,22.0458]
[1755397208554,1.4828,4407.6,4407.5,22.0458]
[1755397209950,0.6419,4408.1,4407.5,21.2157]
[1755397210150,0.5961,4408.1,4408.0,0.1755]
[1755397210349,0.5961,4408.1,4408.0,21.4655]
[1755397210647,0.5961,4408.1,4408.0,20.8075]
[1755397210854,1.4828,4408.1,4408.0,20.8075]
[1755397211151,1.4828,4408.1,4407.7,0.658]
[1755397211357,0.5961,4407.9,4407.8,20.626]
[1755397211556,1.4828,4407.9,4407.8,20.626]
[1755397212656,1.4828,4407.9,4407.8,20.8015]
[1755397212846,1.4828,4407.9,4407.8,21.4595]
[1755397213352,1.4828,4407.9,4407.8,21.8687]
[1755397213548,1.4828,4407.9,4407.8,22.0408]
[1755397214853,0.5961,4407.9,4407.8,21.2107]
[1755397215053,1.4828,4407.9,4407.8,22.0408]
[1755397215454,1.4828,4407.3,4407.2,0.1755]
[1755397215658,1.4828,4407.3,4407.2,21.4545]
[1755397216454,0.5961,4407.3,4406.7,3.4672]
[1755397216655,1.4828,4406.8,4406.7,3.6427]
[1755397216856,1.4828,4406.8,4406.7,20.8145]
[1755397217056,0.5961,4406.3,4406.2,3.7925]
[1755397217251,1.4869,4406.3,4406.2,25.2636]
[1755397217761,1.4682,4406.3,4406.2,20.644]
[1755397217960,1.4682,4406.3,4406.2,20.8078]
[1755397218261,1.4682,4406.3,4406.2,21.0555]
[1755397218850,1.4682,4406.3,4406.2,21.4225]
[1755397219751,1.4682,4406.3,4406.2,21.6787]
[1755397220959,1.4682,4406.3,4406.2,20.8078]
[1755397221466,1.4682,4406.3,4406.2,20.644]
[1755397222568,1.4682,4406.3,4406.2,20.8078]
[1755397222766,1.4682,4406.3,4406.2,21.0555]
[1755397223265,1.2225,4406.0,4405.9,33.031]
[1755397223468,1.2225,4406.0,4405.9,54.0922]
[1755397223871,1.4651,4406.0,4405.9,54.0922]
[1755397232272,0.2636,4406.0,4405.9,54.0922]
[1755397232477,0.6085,4406.3,4406.2,1.3726]
[1755397232478,1.2225,4406.3,4406.2,1.3726]
[1755397232672,0.2636,4406.6,4406.5,0.42]
[1755397232977,1.4651,4406.6,4406.5,22.0316]
[1755397233374,1.4651,4406.6,4406.5,21.079]
[1755397233576,1.4651,4406.6,4406.5,21.6937]
[1755397234083,1.4651,4406.6,4406.5,20.659]